[Event "Championnat du monde jeunes U12F"]
[Date "2024.11.20"]
[White "Siddhi Rao"]
[Black "Ejsymont, Blanka"]
[WhiteElo "1677"]
[BlackElo "1945"]
[Round "6.6"]
[Result "1/2-1/2"]
[TimeControl "5400+30"]

1. e4 {[%clk 1:30:57]} 1... c6 {[%clk 1:30:56]} 2. d4 {[%clk 1:31:21]} 2... d5
{[%clk 1:31:19]} 3. exd5 {[%clk 1:31:45]} 3... cxd5 {[%clk 1:31:38]} 4. Bd3
{[%clk 1:32:10]} 4... Nf6 {[%clk 1:32:01]} 5. c3 {[%clk 1:32:35]} 5... Bg4
{[%clk 1:32:25]} 6. Qb3 {[%clk 1:32:58]} 6... Qc7 {[%clk 1:32:49]} 7. h3 {[%clk
1:33:00]} 7... Bd7 {[%clk 1:33:11]} 8. Nf3 {[%clk 1:33:02]} 8... e6 {[%clk
1:33:21]} 9. O-O {[%clk 1:32:32]} 9... Bd6 {[%clk 1:32:54]} 10. Re1 {[%clk
1:32:35]} 10... Nc6 {[%clk 1:32:57]} 11. Qd1 {[%clk 1:32:51]} 11... O-O {[%clk
1:33:01]} 12. Qe2 {[%clk 1:32:47]} 12... Be8 {[%clk 1:32:00]} 13. Ne5 {[%clk
1:31:36]} 13... Bxe5 {[%clk 1:29:39]} 14. dxe5 {[%clk 1:31:53]} 14... Nd7 {[%clk
1:29:33]} 15. f4 {[%clk 1:24:14]} 15... f6 {[%clk 1:25:38]} 16. exf6 {[%clk
1:20:10]} 16... Rxf6 {[%clk 1:25:24]} 17. Be3 {[%clk 1:14:50]} 17... e5 {[%clk
1:14:55]} 18. fxe5 {[%clk 1:13:45]} 18... Ndxe5 {[%clk 1:11:35]} 19. Bc2 {[%clk
1:07:49]} 19... Bg6 {[%clk 0:28:40]} 20. Bxg6 {[%clk 0:59:18]} 20... Nxg6 {[%clk
0:24:02]} 21. Nd2 {[%clk 0:52:05]} 21... Qg3 {[%clk 0:19:37]} 22. Qb5 {[%clk
0:46:09]} 22... Nge7 {[%clk 0:13:40]} 23. Bc5 {[%clk 0:38:53]} 23... Ng6 {[%clk
0:10:47]} 24. Nf1 {[%clk 0:28:31]} 24... Qf4 {[%clk 0:04:51]} 25. Qxb7 {[%clk
0:23:13]} 25... Rd8 {[%clk 0:02:50]} 26. Rad1 {[%clk 0:19:18]} 26... Qg5 {[%clk
0:00:39]} 27. Be3 {[%clk 0:18:17]} 27... Nf4 {[%clk 0:00:44]} 28. Bxf4 {[%clk
0:18:32]} 28... Qxf4 {[%clk 0:00:56]} 29. Re2 {[%clk 0:17:08]} 29... h6 {[%clk
0:00:35]} 30. Qb3 {[%clk 0:17:06]} 30... Na5 {[%clk 0:00:35]} 31. Qb5 {[%clk
0:15:54]} 31... Nc4 {[%clk 0:00:38]} 32. b3 {[%clk 0:15:31]} 32... Ne5 {[%clk
0:00:40]} 33. Ne3 {[%clk 0:15:16]} 33... Rg6 {[%clk 0:00:40]} 34. Kh1 {[%clk
0:12:53]} 34... Nf3 {[%clk 0:00:40]} 35. gxf3 {[%clk 0:05:05]} 35... Qxf3+
{[%clk 0:00:49]} 36. Ng2 {[%clk 0:04:15]} 36... Rxg2 {[%clk 0:00:51]} 37. Rxg2
{[%clk 0:04:38]} 37... Qxd1+ {[%clk 0:01:17]} 38. Kh2 {[%clk 0:04:50]} 38... Qf3
{[%clk 0:01:08]} 39. Qc5 {[%clk 0:04:36]} 39... Re8 {[%clk 0:00:43]} 40. Qd4
{[%clk 0:03:11]} 40... Qf7 {[%clk 0:00:35]} 41. Rd2 {[%clk 0:01:54]} 41... Re4
{[%clk 0:00:33]} 42. Qf2 {[%clk 0:00:48]} 42... Qc7+ {[%clk 0:00:36]} 43. Qg3
{[%clk 0:01:00]} 43... Qxg3+ {[%clk 0:00:35]} 44. Kxg3 {[%clk 0:01:26]} 44...
Re3+ {[%clk 0:01:04]} 45. Kg4 {[%clk 0:01:47]} 45... Rxc3 {[%clk 0:00:37]} 46.
Rxd5 {[%clk 0:02:11]} 46... Rc7 {[%clk 0:00:45]} 47. h4 {[%clk 0:01:30]} 47...
g6 {[%clk 0:00:36]} 48. Rd6 {[%clk 0:01:15]} 48... Kg7 {[%clk 0:00:54]} 49. Ra6
{[%clk 0:01:17]} 49... Rd7 {[%clk 0:00:35]} 50. Kg3 {[%clk 0:00:50]} 50... Rc7
{[%clk 0:00:34]} 51. Kg4 {[%clk 0:00:35]} 51... Rd7 {[%clk 0:00:45]} 52. h5
{[%clk 0:00:34]} 52... gxh5+ {[%clk 0:00:41]} 53. Kxh5 {[%clk 0:00:58]} 53...
Rd5+ {[%clk 0:01:05]} 54. Kg4 {[%clk 0:01:20]} 54... Rd7 {[%clk 0:01:31]} 55.
Kf5 {[%clk 0:01:23]} 55... Rf7+ {[%clk 0:00:54]} 56. Kg4 {[%clk 0:01:36]} 56...
Rd7 {[%clk 0:00:53]} 57. a3 {[%clk 0:01:25]} 57... Rc7 {[%clk 0:00:35]} 58. b4
{[%clk 0:01:50]} 58... Rd7 {[%clk 0:00:40]} 59. Ra5 {[%clk 0:00:39]} 59... Kg6
{[%clk 0:00:47]} 60. Ra6+ {[%clk 0:00:56]} 60... Kg7 {[%clk 0:01:09]} 61. a4
{[%clk 0:00:51]} 61... Rd4+ {[%clk 0:00:33]} 62. Kh5 {[%clk 0:01:08]} 62... Rd5+
{[%clk 0:00:37]} 63. Kg4 {[%clk 0:01:24]} 63... Rd4+ {[%clk 0:00:44]} 64. Kh5
{[%clk 0:01:18]} 1/2-1/2

[Variant "Standard"]
[Site "Europe Echecs"]

[Event "Championnat du monde jeunes U12F"]
[Date "2024.11.20"]
[White "Pratitee Bordoloi"]
[Black "Tran Le Vy"]
[WhiteElo "1929"]
[BlackElo "1854"]
[Round "6.7"]
[Result "0-1"]
[TimeControl "5400+30"]

1. e4 {[%clk 1:30:55]} 1... e5 {[%clk 1:30:53]} 2. Nf3 {[%clk 1:31:17]} 2... Nc6
{[%clk 1:31:15]} 3. d4 {[%clk 1:31:34]} 3... exd4 {[%clk 1:31:37]} 4. Nxd4
{[%clk 1:31:53]} 4... Bc5 {[%clk 1:31:37]} 5. Nb3 {[%clk 1:32:00]} 5... Bb6
{[%clk 1:29:51]} 6. Nc3 {[%clk 1:32:13]} 6... Nf6 {[%clk 1:27:10]} 7. Be2 {[%clk
1:29:42]} 7... h6 {[%clk 1:23:20]} 8. O-O {[%clk 1:28:38]} 8... d6 {[%clk
1:22:26]} 9. Bf4 {[%clk 1:28:02]} 9... O-O {[%clk 1:16:33]} 10. Bd3 {[%clk
1:27:01]} 10... Ne5 {[%clk 1:06:43]} 11. Bg3 {[%clk 1:23:31]} 11... a6 {[%clk
1:00:47]} 12. h3 {[%clk 1:21:46]} 12... g5 {[%clk 0:43:54]} 13. Bxe5 {[%clk
1:08:55]} 13... dxe5 {[%clk 0:44:11]} 14. Qf3 {[%clk 1:08:51]} 14... Qe7 {[%clk
0:39:10]} 15. g4 {[%clk 1:05:55]} 15... c6 {[%clk 0:37:49]} 16. Ne2 {[%clk
1:03:52]} 16... h5 {[%clk 0:32:01]} 17. gxh5 {[%clk 1:01:15]} 17... g4 {[%clk
0:31:35]} 18. hxg4 {[%clk 0:59:32]} 18... Bxg4 {[%clk 0:28:44]} 19. Qg2 {[%clk
0:57:15]} 19... Kh8 {[%clk 0:28:43]} 20. Ng3 {[%clk 0:55:59]} 20... Rg8 {[%clk
0:26:59]} 21. Nd2 {[%clk 0:48:52]} 21... Nxh5 {[%clk 0:24:12]} 22. Qh2 {[%clk
0:45:54]} 22... Rg7 {[%clk 0:22:16]} 23. Nc4 {[%clk 0:28:15]} 23... Ba7 {[%clk
0:17:32]} 24. Ne3 {[%clk 0:24:46]} 24... Qg5 {[%clk 0:16:54]} 25. Nxg4 {[%clk
0:12:06]} 25... Qxg4 {[%clk 0:17:13]} 26. Kg2 {[%clk 0:11:36]} 26... Rh7 {[%clk
0:17:19]} 27. Rh1 {[%clk 0:11:34]} 27... Nf4+ {[%clk 0:17:40]} 28. Kf1 {[%clk
0:10:52]} 28... Rxh2 {[%clk 0:18:00]} 29. Rxh2+ {[%clk 0:11:18]} 29... Kg8
{[%clk 0:18:20]} 30. Nf5 {[%clk 0:10:14]} 30... Qg5 {[%clk 0:17:26]} 31. Be2
{[%clk 0:06:51]} 31... Rd8 {[%clk 0:14:40]} 32. Bc4 {[%clk 0:06:00]} 32... Rd2
{[%clk 0:13:48]} 33. Re1 {[%clk 0:04:57]} 33... Rxc2 {[%clk 0:12:05]} 34. Bb3
{[%clk 0:03:10]} 34... Rxf2+ {[%clk 0:11:57]} 35. Rxf2 {[%clk 0:03:21]} 35...
Bxf2 {[%clk 0:12:24]} 36. Kxf2 {[%clk 0:03:18]} 36... Nd3+ {[%clk 0:12:49]} 37.
Ke2 {[%clk 0:03:40]} 37... Nxe1 {[%clk 0:13:15]} 38. Kxe1 {[%clk 0:03:56]} 38...
Qc1+ {[%clk 0:13:31]} 39. Ke2 {[%clk 0:04:05]} 39... Qxb2+ {[%clk 0:13:54]} 40.
Kf3 {[%clk 0:04:31]} 40... b5 {[%clk 0:13:28]} 41. Nd6 {[%clk 0:04:11]} 41... c5
{[%clk 0:13:18]} 42. Bxf7+ {[%clk 0:03:55]} 42... Kf8 {[%clk 0:13:40]} 43. Bd5
{[%clk 0:04:15]} 43... c4 {[%clk 0:13:20]} 44. Kg4 {[%clk 0:03:47]} 44... c3
{[%clk 0:13:32]} 45. Bb3 {[%clk 0:03:52]} 45... Qf2 {[%clk 0:13:23]} 46. a4
{[%clk 0:03:53]} 46... bxa4 {[%clk 0:13:32]} 47. Bxa4 {[%clk 0:04:15]} 47... Qd4
{[%clk 0:13:49]} 48. Bc2 {[%clk 0:04:35]} 48... Qxd6 {[%clk 0:14:14]} 49. Kf5
{[%clk 0:05:01]} 49... Kg7 {[%clk 0:14:34]} 50. Bb3 {[%clk 0:05:24]} 50... Qf6+
{[%clk 0:14:48]} 51. Kg4 {[%clk 0:05:49]} 51... Qf4+ {[%clk 0:15:13]} 52. Kh3
{[%clk 0:06:14]} 52... Qxe4 {[%clk 0:15:37]} 53. Kh2 {[%clk 0:06:40]} 53... a5
{[%clk 0:15:54]} 54. Kg3 {[%clk 0:07:01]} 54... a4 {[%clk 0:16:19]} 55. Bd1
{[%clk 0:07:18]} 55... Qd3+ {[%clk 0:16:43]} 56. Bf3 {[%clk 0:07:44]} 56... e4
{[%clk 0:17:09]} 57. Kh2 {[%clk 0:08:10]} 57... Qxf3 {[%clk 0:17:21]} 58. Kg1
{[%clk 0:08:35]} 58... Qe2 {[%clk 0:17:45]} 59. Kh1 {[%clk 0:09:01]} 59... c2
{[%clk 0:18:10]} 0-1

[Variant "Standard"]
[Site "Europe Echecs"]

[Event "Championnat du monde jeunes U12F"]
[Date "2024.11.20"]
[White "Illes-Nagy, Nora"]
[Black "Hanya Shah"]
[WhiteElo "1803"]
[BlackElo "1888"]
[Round "6.8"]
[Result "1/2-1/2"]
[TimeControl "5400+30"]

1. d4 {[%clk 1:30:58]} 1... Nf6 {[%clk 1:30:50]} 2. c3 {[%clk 1:31:17]} 2... e6
{[%clk 1:30:20]} 3. Bg5 {[%clk 1:31:31]} 3... d5 {[%clk 1:29:40]} 4. e3 {[%clk
1:31:24]} 4... b6 {[%clk 1:29:05]} 5. Nf3 {[%clk 1:31:12]} 5... Bb7 {[%clk
1:29:10]} 6. Nbd2 {[%clk 1:31:05]} 6... Be7 {[%clk 1:25:42]} 7. Bd3 {[%clk
1:29:56]} 7... Nbd7 {[%clk 1:25:20]} 8. O-O {[%clk 1:28:40]} 8... Ne4 {[%clk
1:24:10]} 9. Bxe7 {[%clk 1:26:43]} 9... Qxe7 {[%clk 1:17:36]} 10. Qc2 {[%clk
1:24:16]} 10... f5 {[%clk 1:15:59]} 11. Ne5 {[%clk 1:22:13]} 11... O-O {[%clk
1:14:40]} 12. Ndf3 {[%clk 1:14:38]} 12... Rf6 {[%clk 1:10:09]} 13. Nxd7 {[%clk
1:12:26]} 13... Qxd7 {[%clk 1:10:21]} 14. Ne5 {[%clk 1:12:38]} 14... Qe7 {[%clk
1:07:13]} 15. f3 {[%clk 1:11:50]} 15... Nd6 {[%clk 1:06:35]} 16. Rae1 {[%clk
1:09:02]} 16... c5 {[%clk 1:02:20]} 17. Qf2 {[%clk 1:02:01]} 17... Rh6 {[%clk
0:59:57]} 18. Qg3 {[%clk 0:58:17]} 18... Rf8 {[%clk 0:55:50]} 19. f4 {[%clk
0:47:45]} 19... a5 {[%clk 0:40:25]} 20. Rf3 {[%clk 0:39:11]} 20... c4 {[%clk
0:22:55]} 21. Bc2 {[%clk 0:38:45]} 21... b5 {[%clk 0:21:00]} 22. Qf2 {[%clk
0:32:19]} 22... b4 {[%clk 0:19:50]} 23. Qd2 {[%clk 0:30:14]} 23... Ne4 {[%clk
0:16:12]} 24. Bxe4 {[%clk 0:30:08]} 24... fxe4 {[%clk 0:16:32]} 25. Rff1 {[%clk
0:21:24]} 25... Ba8 {[%clk 0:12:57]} 26. g3 {[%clk 0:19:00]} 26... Rb8 {[%clk
0:11:36]} 27. Rb1 {[%clk 0:18:09]} 27... Rf6 {[%clk 0:08:37]} 28. Rfc1 {[%clk
0:14:02]} 28... Rff8 {[%clk 0:05:51]} 29. b3 {[%clk 0:08:59]} 29... Rfc8 {[%clk
0:04:01]} 30. bxc4 {[%clk 0:08:27]} 30... dxc4 {[%clk 0:04:08]} 31. cxb4 {[%clk
0:08:32]} 31... Rxb4 {[%clk 0:04:09]} 32. Rxb4 {[%clk 0:08:54]} 32... Qxb4
{[%clk 0:04:15]} 33. Qxb4 {[%clk 0:08:19]} 33... axb4 {[%clk 0:04:36]} 34. Rxc4
{[%clk 0:08:35]} 34... Rxc4 {[%clk 0:05:02]} 35. Nxc4 {[%clk 0:09:00]} 35... Bd5
{[%clk 0:05:21]} 36. Nb2 {[%clk 0:09:00]} 36... Bxa2 {[%clk 0:05:31]} 37. Kf2
{[%clk 0:09:25]} 37... Kf7 {[%clk 0:05:36]} 38. Ke2 {[%clk 0:09:50]} 38... Bb3
{[%clk 0:03:08]} 39. Nd1 {[%clk 0:09:11]} 39... Kf6 {[%clk 0:01:53]} 40. Nf2
{[%clk 0:09:13]} 40... Bd5 {[%clk 0:01:36]} 41. Kd2 {[%clk 0:08:14]} 41... h5
{[%clk 0:01:13]} 42. h3 {[%clk 0:07:18]} 42... g5 {[%clk 0:01:00]} 43. Kc2
{[%clk 0:07:12]} 43... gxf4 {[%clk 0:00:39]} 44. gxf4 {[%clk 0:07:22]} 44... h4
{[%clk 0:00:34]} 45. Kb2 {[%clk 0:06:52]} 45... Kf5 {[%clk 0:00:46]} 46. Kc2
{[%clk 0:06:46]} 46... Bc4 {[%clk 0:01:02]} 47. Kb2 {[%clk 0:06:54]} 47... Bd5
{[%clk 0:01:00]} 48. Kc2 {[%clk 0:07:19]} 48... Bc4 {[%clk 0:01:18]} 49. Kb2
{[%clk 0:07:45]} 49... Bd5 {[%clk 0:01:11]} 50. Kc2 {[%clk 0:08:09]} 50... Bc4
{[%clk 0:01:17]} 51. Kb2 {[%clk 0:08:21]} 51... Bd5 {[%clk 0:01:11]} 52. Kc2
{[%clk 0:08:30]} 52... Bc4 {[%clk 0:01:13]} 53. Kb2 {[%clk 0:08:40]} 1/2-1/2

[Variant "Standard"]
[Site "Europe Echecs"]

[Event "Championnat du monde jeunes U12F"]
[Date "2024.11.20"]
[White "Anu, Bayart-Uchral"]
[Black "Tong Thai Hoang An"]
[WhiteElo "1624"]
[BlackElo "1869"]
[Round "6.9"]
[Result "0-1"]
[TimeControl "5400+30"]

1. d4 {[%clk 1:30:56]} 1... d5 {[%clk 1:30:28]} 2. c4 {[%clk 1:30:59]} 2... c6
{[%clk 1:30:42]} 3. Nc3 {[%clk 1:31:11]} 3... Nf6 {[%clk 1:29:33]} 4. e3 {[%clk
1:31:07]} 4... e6 {[%clk 1:29:48]} 5. Nf3 {[%clk 1:30:54]} 5... Nbd7 {[%clk
1:30:09]} 6. Bd3 {[%clk 1:30:56]} 6... dxc4 {[%clk 1:30:19]} 7. Bxc4 {[%clk
1:31:15]} 7... b5 {[%clk 1:30:31]} 8. Bd3 {[%clk 1:31:23]} 8... a6 {[%clk
1:30:49]} 9. e4 {[%clk 1:31:07]} 9... c5 {[%clk 1:31:00]} 10. d5 {[%clk
0:49:14]} 10... Qc7 {[%clk 1:29:38]} 11. dxe6 {[%clk 0:49:22]} 11... fxe6 {[%clk
1:29:57]} 12. O-O {[%clk 0:49:42]} 12... c4 {[%clk 1:22:02]} 13. Bc2 {[%clk
0:48:08]} 13... Bb7 {[%clk 1:21:26]} 14. Nd4 {[%clk 0:47:11]} 14... Nc5 {[%clk
1:19:03]} 15. Qe2 {[%clk 0:46:48]} 15... Rd8 {[%clk 1:10:49]} 16. Be3 {[%clk
0:44:28]} 16... e5 {[%clk 1:06:42]} 17. Nf3 {[%clk 0:44:15]} 17... Bd6 {[%clk
0:54:12]} 18. Nd2 {[%clk 0:27:45]} 18... O-O {[%clk 0:53:38]} 19. a4 {[%clk
0:24:42]} 19... Bc6 {[%clk 0:51:07]} 20. Bxc5 {[%clk 0:16:31]} 20... Bxc5 {[%clk
0:51:15]} 21. Nxc4 {[%clk 0:16:35]} 21... bxc4 {[%clk 0:38:56]} 22. Qxc4+ {[%clk
0:16:50]} 22... Bd5 {[%clk 0:39:05]} 23. Qxa6 {[%clk 0:15:46]} 23... Bf7 {[%clk
0:38:52]} 24. Qe2 {[%clk 0:10:51]} 24... Bh5 {[%clk 0:38:19]} 25. Bb3+ {[%clk
0:08:51]} 25... Kh8 {[%clk 0:38:43]} 26. Qc2 {[%clk 0:09:12]} 26... Ng4 {[%clk
0:36:15]} 27. Nd1 {[%clk 0:08:50]} 27... Qa7 {[%clk 0:25:30]} 28. h3 {[%clk
0:07:50]} 28... Bxf2+ {[%clk 0:19:54]} 29. Kh1 {[%clk 0:03:02]} 29... Bg3 {[%clk
0:18:17]} 30. Rxf8+ {[%clk 0:03:20]} 30... Rxf8 {[%clk 0:18:42]} 31. Qd3 {[%clk
0:03:19]} 31... Nf2+ {[%clk 0:18:40]} 32. Nxf2 {[%clk 0:03:41]} 32... Qxf2
{[%clk 0:14:51]} 33. Rg1 {[%clk 0:01:45]} 33... Be2 {[%clk 0:14:20]} 34. Qb1
{[%clk 0:01:28]} 34... h6 {[%clk 0:14:30]} 35. Bd5 {[%clk 0:01:11]} 35... Bf4
{[%clk 0:13:32]} 36. Qe1 {[%clk 0:01:17]} 36... Qe3 {[%clk 0:13:22]} 37. a5
{[%clk 0:01:13]} 37... Ba6 {[%clk 0:11:11]} 38. Qxe3 {[%clk 0:01:23]} 38... Bxe3
{[%clk 0:11:38]} 39. Rb1 {[%clk 0:01:28]} 39... Rb8 {[%clk 0:11:30]} 40. b3
{[%clk 0:00:43]} 40... Rc8 {[%clk 0:11:42]} 41. b4 {[%clk 0:01:03]} 41... Rb8
{[%clk 0:11:18]} 42. b5 {[%clk 0:01:06]} 42... Rxb5 {[%clk 0:11:27]} 43. Rxb5
{[%clk 0:01:31]} 43... Bxb5 {[%clk 0:11:23]} 44. Bb7 {[%clk 0:01:59]} 44... g6
{[%clk 0:11:24]} 45. g3 {[%clk 0:01:55]} 45... Kg7 {[%clk 0:11:38]} 46. h4
{[%clk 0:02:05]} 46... Kf6 {[%clk 0:10:52]} 47. Kg2 {[%clk 0:02:15]} 47... Be2
{[%clk 0:10:59]} 48. Bc8 {[%clk 0:02:18]} 48... Ke7 {[%clk 0:10:56]} 49. h5
{[%clk 0:01:40]} 49... g5 {[%clk 0:08:44]} 50. Kh3 {[%clk 0:01:48]} 50... Bxh5
{[%clk 0:08:28]} 51. a6 {[%clk 0:01:40]} 51... Be2 {[%clk 0:08:37]} 52. Bb7
{[%clk 0:01:30]} 52... Kd6 {[%clk 0:08:37]} 53. Kg2 {[%clk 0:01:23]} 53... Kc7
{[%clk 0:08:52]} 54. Bd5 {[%clk 0:01:06]} 54... h5 {[%clk 0:09:10]} 55. Be6
{[%clk 0:00:37]} 55... Kb6 {[%clk 0:09:06]} 56. a7 {[%clk 0:00:34]} 56... Kxa7
{[%clk 0:09:29]} 57. Bf5 {[%clk 0:00:39]} 57... Kb6 {[%clk 0:09:44]} 58. Bh7
{[%clk 0:00:44]} 58... Kc5 {[%clk 0:10:05]} 59. Bf5 {[%clk 0:01:06]} 59... Kd4
{[%clk 0:10:30]} 60. Bg6 {[%clk 0:01:27]} 60... Bg4 {[%clk 0:10:31]} 61. Bh7
{[%clk 0:01:32]} 61... h4 {[%clk 0:10:10]} 62. gxh4 {[%clk 0:01:34]} 62... gxh4
{[%clk 0:10:36]} 63. Kh1 {[%clk 0:00:49]} 63... Bf4 {[%clk 0:10:55]} 64. Bg6
{[%clk 0:00:38]} 64... h3 {[%clk 0:11:14]} 65. Bh5 {[%clk 0:00:32]} 65... Bxh5
{[%clk 0:11:35]} 66. Kg1 {[%clk 0:00:54]} 66... h2+ {[%clk 0:11:58]} 67. Kf2
{[%clk 0:01:11]} 67... Bf3 {[%clk 0:12:12]} 68. Kxf3 {[%clk 0:01:30]} 0-1

[Variant "Standard"]
[Site "Europe Echecs"]

[Event "Championnat du monde jeunes U12F"]
[Date "2024.11.20"]
[White "Pavithra R V"]
[Black "Rzadkowska, Kaja"]
[WhiteElo "1854"]
[BlackElo "1798"]
[Round "6.10"]
[Result "1-0"]
[TimeControl "5400+30"]

1. e4 {[%clk 1:30:51]} 1... c5 {[%clk 1:30:57]} 2. Nf3 {[%clk 1:31:17]} 2... Nc6
{[%clk 1:31:18]} 3. d3 {[%clk 1:31:32]} 3... g6 {[%clk 1:31:35]} 4. g3 {[%clk
1:31:57]} 4... Bg7 {[%clk 1:31:51]} 5. Bg2 {[%clk 1:32:13]} 5... e5 {[%clk
1:31:47]} 6. O-O {[%clk 1:32:28]} 6... Nge7 {[%clk 1:31:43]} 7. Be3 {[%clk
1:32:19]} 7... d6 {[%clk 1:31:23]} 8. Qd2 {[%clk 1:32:15]} 8... O-O {[%clk
1:30:35]} 9. Nc3 {[%clk 1:26:47]} 9... f5 {[%clk 1:21:08]} 10. Bg5 {[%clk
1:22:37]} 10... Qc7 {[%clk 1:15:58]} 11. h4 {[%clk 1:08:04]} 11... f4 {[%clk
1:02:22]} 12. gxf4 {[%clk 1:06:00]} 12... h6 {[%clk 0:55:41]} 13. Bxe7 {[%clk
1:04:04]} 13... Qxe7 {[%clk 0:52:54]} 14. Nd5 {[%clk 0:58:02]} 14... Qd8 {[%clk
0:45:27]} 15. fxe5 {[%clk 0:26:59]} 15... dxe5 {[%clk 0:34:24]} 16. Qe3 {[%clk
0:24:23]} 16... Bg4 {[%clk 0:28:58]} 17. Nh2 {[%clk 0:20:28]} 17... Qxh4 {[%clk
0:28:48]} 18. Nxg4 {[%clk 0:20:35]} 18... Qxg4 {[%clk 0:29:10]} 19. f3 {[%clk
0:18:55]} 19... Qg3 {[%clk 0:27:14]} 20. c3 {[%clk 0:16:24]} 20... b6 {[%clk
0:25:55]} 21. Qf2 {[%clk 0:15:49]} 21... Qxf2+ {[%clk 0:24:37]} 22. Kxf2 {[%clk
0:16:06]} 22... Nd8 {[%clk 0:21:47]} 23. Bh3 {[%clk 0:15:32]} 23... Nf7 {[%clk
0:20:02]} 24. Be6 {[%clk 0:15:40]} 24... Kh7 {[%clk 0:18:52]} 25. Bxf7 {[%clk
0:15:50]} 25... Rxf7 {[%clk 0:19:21]} 26. Ke2 {[%clk 0:15:47]} 26... g5 {[%clk
0:18:00]} 27. a4 {[%clk 0:14:46]} 27... Rb8 {[%clk 0:17:40]} 28. b4 {[%clk
0:13:25]} 28... cxb4 {[%clk 0:17:16]} 29. cxb4 {[%clk 0:13:53]} 29... Bf8 {[%clk
0:14:13]} 30. Rab1 {[%clk 0:13:06]} 30... Rfb7 {[%clk 0:12:12]} 31. Rh1 {[%clk
0:11:56]} 31... Kg6 {[%clk 0:11:50]} 32. Rbc1 {[%clk 0:12:04]} 32... Bg7 {[%clk
0:09:39]} 33. Rc6+ {[%clk 0:11:42]} 33... Kf7 {[%clk 0:09:55]} 34. Ne3 {[%clk
0:11:47]} 34... Rd7 {[%clk 0:07:48]} 35. Rhc1 {[%clk 0:09:25]} 35... Rbd8 {[%clk
0:07:10]} 36. Rc7 {[%clk 0:08:47]} 36... Bf8 {[%clk 0:06:16]} 37. Nd5 {[%clk
0:08:52]} 37... Bd6 {[%clk 0:05:43]} 38. R7c6 {[%clk 0:08:58]} 38... Kg7 {[%clk
0:04:52]} 39. Kf2 {[%clk 0:06:29]} 39... Rh8 {[%clk 0:03:54]} 40. Kg3 {[%clk
0:06:28]} 40... h5 {[%clk 0:03:45]} 41. R1c4 {[%clk 0:06:31]} 41... h4+ {[%clk
0:03:21]} 42. Kh3 {[%clk 0:06:49]} 42... Kg6 {[%clk 0:03:33]} 43. Ne3 {[%clk
0:07:02]} 43... Kh5 {[%clk 0:03:29]} 44. Ng4 {[%clk 0:06:39]} 44... Rf8 {[%clk
0:03:40]} 45. Kg2 {[%clk 0:06:20]} 45... Rf4 {[%clk 0:02:41]} 46. Rc1 {[%clk
0:05:49]} 46... Rd8 {[%clk 0:00:44]} 47. Ne3 {[%clk 0:01:38]} 47... Rf6 {[%clk
0:00:41]} 48. Nf5 {[%clk 0:01:52]} 48... Kg6 {[%clk 0:00:47]} 49. Rc8 {[%clk
0:01:34]} 49... Rxc8 50. Rxc8 {[%clk 0:02:01]} 50... Bxb4 {[%clk 0:01:00]} 51.
Rg8+ {[%clk 0:01:48]} 51... Kh5 {[%clk 0:01:03]} 52. Rh8+ {[%clk 0:01:26]} 52...
Kg6 {[%clk 0:01:31]} 53. Rh6+ {[%clk 0:01:55]} 53... Kf7 {[%clk 0:01:48]} 54.
Rh7+ {[%clk 0:02:21]} 54... Ke6 {[%clk 0:01:15]} 55. Rxa7 {[%clk 0:02:40]} 55...
Bc5 {[%clk 0:00:48]} 56. Ng7+ {[%clk 0:02:17]} 56... Kd6 {[%clk 0:01:09]} 57.
Ne8+ {[%clk 0:02:44]} 57... Ke6 {[%clk 0:01:30]} 58. Nxf6 {[%clk 0:03:09]} 58...
Kxf6 {[%clk 0:01:58]} 59. Kh3 {[%clk 0:03:38]} 59... Be3 {[%clk 0:02:00]} 60.
Kg4 {[%clk 0:04:01]} 60... Kg6 {[%clk 0:01:22]} 61. Rd7 {[%clk 0:03:59]} 61...
Kf6 {[%clk 0:01:10]} 62. Rd6+ {[%clk 0:04:19]} 62... Ke7 {[%clk 0:01:30]} 63.
Rh6 {[%clk 0:04:33]} 63... Kd7 {[%clk 0:01:35]} 64. Kf5 {[%clk 0:04:58]} 64...
Bf4 {[%clk 0:01:49]} 65. Rxb6 {[%clk 0:04:53]} 65... h3 {[%clk 0:02:08]} 66. a5
{[%clk 0:05:19]} 66... h2 {[%clk 0:02:32]} 67. Rb1 {[%clk 0:05:47]} 67... Kc7
{[%clk 0:02:43]} 68. a6 {[%clk 0:06:13]} 68... h1=Q {[%clk 0:02:27]} 69. Rxh1
{[%clk 0:06:41]} 69... Kb6 {[%clk 0:02:50]} 70. Rh6+ {[%clk 0:07:02]} 70... Ka7
{[%clk 0:03:14]} 71. Rg6 {[%clk 0:07:26]} 71... Ka8 {[%clk 0:03:34]} 72. Rxg5
{[%clk 0:07:49]} 72... Bxg5 {[%clk 0:04:00]} 73. Kxg5 {[%clk 0:08:15]} 73... Ka7
{[%clk 0:04:24]} 74. Kf5 {[%clk 0:08:41]} 74... Kxa6 {[%clk 0:04:49]} 75. Kxe5
{[%clk 0:09:09]} 1-0

[Variant "Standard"]
[Site "Europe Echecs"]